[Event "26th Abu Dhabi Master 2019"]
[Site "Abu Dhabi"]
[Date "2019.08.03"]
[Round "3.68"]
[White "Adnan, Habib"]
[Black "Gajwa Ankit"]
[Result "1/2-1/2"]
[ECO "E61"]
[WhiteElo "2197"]
[BlackElo "2302"]
[Annotator "NA"]
[PlyCount "92"]
[EventDate "2019.08.02"]
[EventType "swiss"]
[EventCountry "UAE"]
[SourceTitle "playchess.com"]
[Source "ChessBase"]
[SourceQuality "1"]
[TimeControl "5400+30"]

1. d4 {[%emt 0:00:00]} Nf6 {[%emt 0:00:00]} 2. c4 {[%emt 0:00:00]} g6 {[%emt 0:00:00]} 3. Nc3 {[%emt 0:00:00]} Bg7 {[%emt 0:00:14]} 4. Nf3 {[%emt 0:00:08]} O-O {[%emt 0:00:19]} 5. Bg5 {[%emt 0:00:06]} c5 {[%emt 0:00:13]} 6. e3 {[%emt 0:00:06]} cxd4 {[%emt 0:00:23]} 7. exd4 {[%emt 0:01:11]} d5 {[%emt 0:00:47]} 8. Bxf6 {[%emt 0:02:04]} Bxf6 {[%emt 0:00:07]} 9. Nxd5 {[%emt 0:00:11]} Bg7 {[%emt 0:00:16]} 10. Nc3 {[%emt 0:00:42]} Bg4 {[%emt 0:03:07]} 11. Be2 {[%emt 0:09:29]} Nc6 {[%emt 0:01:57]} 12. d5 {[%emt 0:00:14]} Bxf3 {[%emt 0:12:02]} 13. Bxf3 {[%emt 0:00:26]} Na5 {[%emt 0:04:39]} 14. Be2 {[%emt 0:06:05]} Rc8 {[%emt 0:02:54]} 15. O-O {[%emt 0:08:49]} Nxc4 {[%emt 0:03:30]} 16. Bxc4 {[%emt 0:01:43]} Rxc4 {[%emt 0:00:05]} 17. Qb3 {[%emt 0:00:04]} Qc8 {[%emt 0:06:14]} 18. Rac1 {[%emt 0:02:14]} Rd8 {[%emt 0:04:45]} 19. Rfd1 {[%emt 0:04:13]} Rd7 {[%emt 0:05:32]} 20. h3 {[%emt 0:09:57]} Rdc7 {[%emt 0:04:23]} 21. Rd3 {[%emt 0:00:21]} Qf5 {[%emt 0:12:17]} 22. Rcd1 {[%emt 0:00:44]} a6 {[%emt 0:05:33]} 23. d6 {[%emt 0:09:46]} exd6 {[%emt 0:04:47]} 24. Nd5 {[%emt 0:01:14]} Be5 {[%emt 0:05:44]} 25. Qxc4 {[%emt 0:07:30]} Rxc4 {[%emt 0:00:05]} 26. Ne7+ {[%emt 0:00:05]} Kf8 {[%emt 0:00:06]} 27. Nxf5 {[%emt 0:00:09]} gxf5 {[%emt 0:00:04]} 28. R3d2 {[%emt 0:00:51]} h5 {[%emt 0:00:37]} 29. Kf1 {[%emt 0:01:16]} Ke7 {[%emt 0:01:30]} 30. Ke2 {[%emt 0:02:00]} b5 {[%emt 0:01:28]} 31. b3 {[%emt 0:02:27]} Rc3 {[%emt 0:01:15]} 32. Rd3 {[%emt 0:00:41]} Rc2+ {[%emt 0:00:16]} 33. R1d2 {[%emt 0:01:13]} Rc1 {[%emt 0:00:07]} 34. Rd5 {[%emt 0:03:47]} Ke6 {[%emt 0:04:51]} 35. Rd1 {[%emt 0:11:13]} Rc2+ {[%emt 0:00:13]} 36. R5d2 {[%emt 0:00:04]} Rc3 {[%emt 0:00:25]} 37. Rd3 {[%emt 0:00:59]} Rc2+ {[%emt 0:00:30]} 38. R1d2 {[%emt 0:00:03]} Rc1 {[%emt 0:00:23]} 39. Rd5 {[%emt 0:00:30]} Bf4 {[%emt 0:04:02]} 40. Rd1 {[%emt 0:01:01]} Rc2+ {[%emt 0:00:29]} 41. Kf3 {[%emt 0:00:12]} Be5 {[%emt 0:00:10]} 42. R1d2 {[%emt 0:00:17]} Rc3+ {[%emt 0:00:54]} 43. R5d3 {[%emt 0:00:14]} Rc1 {[%emt 0:01:24]} 44. g3 {[%emt 0:02:53]} h4 {[%emt 0:00:43]} 45. gxh4 {[%emt 0:00:43]} Rc8 {[%emt 0:00:49]} 46. Re2 {[%emt 0:01:20]} Rh8 {[%emt 0:00:56] Ke4} 1/2-1/2

[Event "26th Abu Dhabi Master 2019"]
[Site "Abu Dhabi"]
[Date "2019.08.03"]
[Round "3.69"]
[White "Samant Aditya S"]
[Black "Soham Datar"]
[Result "1-0"]
[ECO "B90"]
[WhiteElo "2296"]
[BlackElo "2129"]
[Annotator "NA"]
[PlyCount "111"]
[EventDate "2019.08.02"]
[EventType "swiss"]
[EventCountry "UAE"]
[SourceTitle "playchess.com"]
[Source "ChessBase"]
[SourceQuality "1"]
[TimeControl "5400+30"]

1. e4 {[%emt 0:00:00]} c5 {[%emt 0:00:00]} 2. Nf3 {[%emt 0:00:00]} d6 {[%emt 0:00:00]} 3. d4 {[%emt 0:00:00]} cxd4 {[%emt 0:00:00]} 4. Nxd4 {[%emt 0:00:00]} Nf6 {[%emt 0:00:00]} 5. Nc3 a6 6. h3 {[%emt 0:00:36]} e5 {[%emt 0:01:35]} 7. Nde2 {[%emt 0:00:07]} h5 {[%emt 0:01:11]} 8. Bg5 {[%emt 0:00:07]} Be6 {[%emt 0:00:05]} 9. Bxf6 {[%emt 0:00:09]} Qxf6 {[%emt 0:00:31]} 10. Nd5 {[%emt 0:00:07]} Qd8 {[%emt 0:00:07]} 11. Qd3 {[%emt 0:00:09]} g6 {[%emt 0:03:19]} 12. O-O-O {[%emt 0:00:10]} Nd7 {[%emt 0:00:25]} 13. Kb1 {[%emt 0:00:14]} Rc8 {[%emt 0:00:16]} 14. Nec3 {[%emt 0:01:37]} Nc5 {[%emt 0:02:47]} 15. Qf3 {[%emt 0:00:17]} Bg7 {[%emt 0:05:21]} 16. Ne3 {[%emt 0:04:28]} b5 {[%emt 0:07:14]} 17. Ncd5 {[%emt 0:01:01]} O-O {[%emt 0:12:48]} 18. h4 {[%emt 0:04:56]} f5 {[%emt 0:07:29]} 19. exf5 {[%emt 0:01:53]} gxf5 {[%emt 0:11:32]} 20. Qxh5 {[%emt 0:01:41]} Ne4 {[%emt 0:13:13]} 21. Bd3 {[%emt 0:33:46]} Nf6 {[%emt 0:03:48]} 22. Qg6 {[%emt 0:02:50]} Bxd5 {[%emt 0:04:19]} 23. Nxd5 {[%emt 0:00:15]} Nxd5 {[%emt 0:00:05]} 24. Bxf5 {[%emt 0:03:59]} Rxf5 {[%emt 0:07:22]} 25. Qxf5 {[%emt 0:00:12]} Nc7 {[%emt 0:05:33]} 26. Rxd6 {[%emt 0:02:43]} Qxd6 {[%emt 0:00:05]} 27. Qxc8+ {[%emt 0:00:09]} Kh7 {[%emt 0:00:23]} 28. Qb7 {[%emt 0:05:57]} Nd5 {[%emt 0:00:55]} 29. h5 {[%emt 0:01:07]} Kh6 {[%emt 0:00:45]} 30. g4 {[%emt 0:13:45]} Bf6 {[%emt 0:01:29]} 31. Qc8 {[%emt 0:02:13]} Ne7 {[%emt 0:01:57]} 32. Qf8+ {[%emt 0:03:36]} Kg5 {[%emt 0:00:53]} 33. h6 {[%emt 0:03:48]} Qc6 {[%emt 0:00:01]} 34. Rh5+ {[%emt 0:08:56]} Kxg4 {[%emt 0:00:14]} 35. Rh2 {[%emt 0:00:05]} Qf3 {[%emt 0:05:03]} 36. a3 {[%emt 0:00:25]} Qd1+ {[%emt 0:00:41]} 37. Ka2 {[%emt 0:00:02]} Kf5 {[%emt 0:01:17]} 38. h7 {[%emt 0:00:30]} Qd5+ {[%emt 0:00:40]} 39. b3 {[%emt 0:00:07]} Qd2 {[%emt 0:00:04]} 40. Qxf6+ {[%emt 0:00:25]} Kxf6 {[%emt 0:00:12]} 41. h8=Q+ {[%emt 0:00:02]} Kf5 {[%emt 0:00:54]} 42. Qh5+ {[%emt 0:00:15]} Qg5 {[%emt 0:01:02]} 43. Qxg5+ Kxg5 44. Rh7 {[%emt 0:00:55]} Nd5 {[%emt 0:00:28]} 45. Kb2 {[%emt 0:00:52]} Kg4 {[%emt 0:00:20]} 46. c4 {[%emt 0:00:59]} bxc4 {[%emt 0:00:02]} 47. bxc4 {[%emt 0:00:02]} Nf4 {[%emt 0:00:06]} 48. Kc3 {[%emt 0:00:21]} Kf3 {[%emt 0:00:06]} 49. Re7 {[%emt 0:01:17]} Ke4 {[%emt 0:00:13]} 50. f3+ {[%emt 0:00:27]} Kf5 {[%emt 0:00:04]} 51. Rf7+ {[%emt 0:00:11]} Ke6 {[%emt 0:00:10]} 52. Ra7 {[%emt 0:00:06]} Ne2+ {[%emt 0:00:06]} 53. Kd2 {[%emt 0:00:17]} Nd4 {[%emt 0:00:04]} 54. Rxa6+ {[%emt 0:00:05]} Kf5 {[%emt 0:00:09]} 55. Ke3 {[%emt 0:00:10]} Nc2+ {[%emt 0:01:41]} 56. Kf2 {[%emt 0:00:07]} 1-0

[Event "26th Abu Dhabi Master 2019"]
[Site "Abu Dhabi"]
[Date "2019.08.03"]
[Round "3.70"]
[White "Alinasab, Mobina"]
[Black "Krzywda, Andrzej"]
[Result "1-0"]
[ECO "B10"]
[WhiteElo "2280"]
[BlackElo "2190"]
[Annotator "ChessBase"]
[PlyCount "146"]
[EventDate "2019.08.02"]
[EventType "swiss"]
[EventCountry "UAE"]
[SourceTitle "playchess.com"]
[Source "ChessBase"]
[SourceQuality "1"]
[TimeControl "5400+30"]

1. e4 {[%emt 0:06:24]} c6 {[%emt 0:00:00]} 2. Nc3 {[%emt 0:00:07]} d5 {[%emt 0:00:00]} 3. Nf3 {[%emt 0:00:03]} Nf6 {[%emt 0:00:09]} 4. e5 {[%emt 0:00:05]} Ne4 {[%emt 0:00:24]} 5. Ne2 {[%emt 0:00:07]} Qb6 {[%emt 0:01:10]} 6. d4 {[%emt 0:00:21]} e6 {[%emt 0:01:14]} 7. Ng3 {[%emt 0:01:26]} c5 {[%emt 0:02:20]} 8. Bd3 {[%emt 0:01:31]} Nxg3 {[%emt 0:02:24]} 9. fxg3 {[%emt 0:00:21]} Nc6 {[%emt 0:08:06]} 10. O-O {[%emt 0:01:36]} Be7 {[%emt 0:06:36]} 11. Kh1 {[%emt 0:31:41]} cxd4 {[%emt 0:09:43]} 12. a3 {[%emt 0:04:26]} Bd7 {[%emt 0:01:14]} 13. Qe2 {[%emt 0:00:23]} O-O-O {[%emt 0:09:26]} 14. b4 {[%emt 0:05:15]} f6 {[%emt 0:05:16]} 15. Bf4 {[%emt 0:03:30]} f5 {[%emt 0:05:24]} 16. Bd2 {[%emt 0:02:34]} Kb8 {[%emt 0:02:47]} 17. Rfb1 {[%emt 0:06:07]} Rc8 {[%emt 0:04:47]} 18. Qe1 {[%emt 0:01:25]} Nd8 {[%emt 0:06:40]} 19. b5 {[%emt 0:03:28]} Qc7 {[%emt 0:01:05]} 20. a4 {[%emt 0:07:57]} b6 {[%emt 0:07:23]} 21. a5 {[%emt 0:03:58]} Bc5 {[%emt 0:01:11]} 22. axb6 {[%emt 0:01:19]} Bxb6 {[%emt 0:00:22]} 23. Ra4 {[%emt 0:02:01]} Nb7 {[%emt 0:00:48]} 24. Bb4 {[%emt 0:03:03]} Nc5 {[%emt 0:02:54]} 25. Bxc5 {[%emt 0:02:37]} Qxc5 {[%emt 0:00:22]} 26. Nxd4 {[%emt 0:01:02]} h5 {[%emt 0:02:49]} 27. Nf3 {[%emt 0:01:52]} Rc7 {[%emt 0:03:55]} 28. c4 {[%emt 0:03:08]} Bc8 {[%emt 0:02:35]} 29. cxd5 {[%emt 0:02:23]} Qxd5 {[%emt 0:00:28]} 30. Qe2 {[%emt 0:00:16]} Rd8 {[%emt 0:01:42]} 31. Ra3 {[%emt 0:02:25]} Bb7 {[%emt 0:01:21]} 32. h3 {[%emt 0:00:11]} Rdc8 {[%emt 0:02:30]} 33. Rd1 {[%emt 0:00:42]} Rc1 {[%emt 0:02:12]} 34. Ra1 {[%emt 0:00:10]} Rxa1 {[%emt 0:01:24]} 35. Rxa1 {[%emt 0:00:01]} Rc3 {[%emt 0:00:41]} 36. Rd1 {[%emt 0:00:56]} Qc5 {[%emt 0:00:56]} 37. Kh2 {[%emt 0:00:28]} Bd5 {[%emt 0:01:59]} 38. h4 {[%emt 0:02:10]} Rc1 {[%emt 0:01:20]} 39. Rxc1 {[%emt 0:01:18]} Qxc1 {[%emt 0:00:02]} 40. Qf1 {[%emt 0:00:35]} Qe3 {[%emt 0:00:55]} 41. Bc4 {[%emt 0:00:29]} Qc5 {[%emt 0:02:23]} 42. Bxd5 {[%emt 0:00:08]} Qxd5 {[%emt 0:00:02]} 43. Qe2 {[%emt 0:00:19]} Bc5 {[%emt 0:01:08]} 44. Qc2 {[%emt 0:00:45]} g6 {[%emt 0:00:41]} 45. Qc1 {[%emt 0:00:25]} Kb7 {[%emt 0:00:47]} 46. Qh6 {[%emt 0:00:47]} Kb6 {[%emt 0:00:13]} 47. Qxg6 {[%emt 0:00:02]} Kxb5 {[%emt 0:00:15]} 48. Qxh5 {[%emt 0:00:20]} a5 {[%emt 0:00:58]} 49. Qe8+ {[%emt 0:00:05]} Kb4 {[%emt 0:00:27]} 50. h5 {[%emt 0:00:50]} Be3 {[%emt 0:00:38]} 51. Qb8+ {[%emt 0:00:59]} Kc3 {[%emt 0:00:24]} 52. Qb1 {[%emt 0:00:55]} Bh6 {[%emt 0:00:55]} 53. Qa1+ {[%emt 0:00:22]} Kb4 {[%emt 0:00:25]} 54. Qb2+ {[%emt 0:00:14]} Qb3 {[%emt 0:00:34]} 55. Qd4+ {[%emt 0:00:44]} Ka3 {[%emt 0:00:24]} 56. Qa1+ {[%emt 0:00:12]} Kb4 {[%emt 0:00:22]} 57. Qd4+ {[%emt 0:00:33]} Ka3 {[%emt 0:00:30]} 58. Nd2 {[%emt 0:00:42]} Bxd2 {[%emt 0:00:41]} 59. Qxd2 {[%emt 0:00:01]} a4 {[%emt 0:00:28]} 60. h6 {[%emt 0:00:15]} Qb7 {[%emt 0:00:09]} 61. Qc3+ {[%emt 0:00:48]} Ka2 {[%emt 0:00:16]} 62. Qc4+ {[%emt 0:00:08]} Ka3 {[%emt 0:01:10]} 63. Qxe6 {[%emt 0:00:31]} Kb2 {[%emt 0:00:08]} 64. Qxf5 {[%emt 0:00:12]} a3 {[%emt 0:00:14]} 65. h7 {[%emt 0:00:17]} Qg7 {[%emt 0:00:36]} 66. Qh5 {[%emt 0:00:57]} Qh8 {[%emt 0:00:29]} 67. Qe2+ {[%emt 0:01:15]} Kb1 {[%emt 0:00:36]} 68. Qd1+ {[%emt 0:00:24]} Kb2 {[%emt 0:00:08]} 69. Qd2+ {[%emt 0:00:01]} Kb1 {[%emt 0:00:51]} 70. Qb4+ {[%emt 0:00:05]} Ka2 {[%emt 0:00:58]} 71. Qc4+ {[%emt 0:00:01]} Kb1 {[%emt 0:00:28]} 72. Qg8 {[%emt 0:01:29]} Qxe5 {[%emt 0:00:34]} 73. h8=Q {[%emt 0:00:12]} Qe2 {[%emt 0:01:04]} 1-0

[Event "26th Abu Dhabi Master 2019"]
[Site "Abu Dhabi"]
[Date "2019.08.03"]
[Round "3.71"]
[White "Salih, Akar Ali Salih"]
[Black "Mohamed, Faisal"]
[Result "1-0"]
[ECO "B35"]
[WhiteElo "2261"]
[BlackElo "2150"]
[Annotator "NA"]
[PlyCount "99"]
[EventDate "2019.08.02"]
[EventType "swiss"]
[EventCountry "UAE"]
[SourceTitle "playchess.com"]
[Source "ChessBase"]
[SourceQuality "1"]
[TimeControl "5400+30"]

1. e4 {[%emt 0:03:47]} c5 {[%emt 0:02:45]} 2. Nf3 {[%emt 0:01:12]} g6 {[%emt 0:00:16]} 3. d4 {[%emt 0:01:25]} cxd4 {[%emt 0:00:17]} 4. Nxd4 {[%emt 0:00:24]} Nc6 {[%emt 0:00:22]} 5. Nc3 {[%emt 0:00:54]} Bg7 {[%emt 0:00:29]} 6. Be3 {[%emt 0:00:07]} Nf6 {[%emt 0:00:15]} 7. Bc4 {[%emt 0:03:04]} O-O {[%emt 0:01:40]} 8. Qd2 {[%emt 0:01:42]} Nxe4 {[%emt 0:12:58]} 9. Bxf7+ {[%emt 0:13:35]} Rxf7 {[%emt 0:02:44]} 10. Nxe4 {[%emt 0:00:18]} Rf8 {[%emt 0:23:36]} 11. c4 {[%emt 0:24:55]} Ne5 {[%emt 0:05:08]} 12. b3 {[%emt 0:04:27]} Ng4 {[%emt 0:22:20]} 13. Nc3 {[%emt 0:05:34]} Nxe3 {[%emt 0:06:38]} 14. Qxe3 {[%emt 0:00:16]} Qb6 {[%emt 0:06:32]} 15. Rd1 {[%emt 0:02:44]} e5 {[%emt 0:01:16]} 16. Ndb5 {[%emt 0:07:46]} Qxe3+ {[%emt 0:00:37]} 17. fxe3 {[%emt 0:00:03]} b6 {[%emt 0:01:28]} 18. Nd6 {[%emt 0:03:25]} Ba6 {[%emt 0:00:25]} 19. Nd5 {[%emt 0:00:31]} Rab8 {[%emt 0:02:19]} 20. Rf1 {[%emt 0:09:37]} Rxf1+ {[%emt 0:01:06]} 21. Kxf1 {[%emt 0:00:02]} Bb7 {[%emt 0:00:58]} 22. Ke2 {[%emt 0:01:56]} Bxd5 {[%emt 0:02:42]} 23. Rxd5 {[%emt 0:08:57]} Kf8 {[%emt 0:00:47]} 24. Nb5 {[%emt 0:00:48]} Ke7 {[%emt 0:00:26]} 25. a4 {[%emt 0:00:34]} a5 {[%emt 0:01:41]} 26. Nc3 {[%emt 0:00:36]} Ke6 {[%emt 0:00:35]} 27. Rb5 {[%emt 0:01:33]} Bf8 {[%emt 0:02:06]} 28. Ne4 {[%emt 0:01:00]} d6 {[%emt 0:00:27]} 29. g4 {[%emt 0:00:51]} Be7 {[%emt 0:00:18]} 30. h3 {[%emt 0:00:45]} Kd7 {[%emt 0:00:30]} 31. Nc3 {[%emt 0:01:29]} Kc6 {[%emt 0:00:54]} 32. Nd5 {[%emt 0:00:17]} Bh4 {[%emt 0:00:34]} 33. b4 {[%emt 0:01:19]} axb4 {[%emt 0:00:39]} 34. Nxb4+ {[%emt 0:00:14]} Kd7 {[%emt 0:00:25]} 35. Nd5 {[%emt 0:00:18]} Bd8 {[%emt 0:00:23]} 36. a5 {[%emt 0:00:08]} Kc6 {[%emt 0:00:24]} 37. Kd3 {[%emt 0:00:06]} Rb7 {[%emt 0:00:30]} 38. a6 {[%emt 0:00:49]} Ra7 {[%emt 0:00:41]} 39. Ke4 {[%emt 0:00:11]} Ra8 {[%emt 0:00:44]} 40. Nb4+ {[%emt 0:00:30]} Kc7 {[%emt 0:00:15]} 41. Kd5 {[%emt 0:00:25]} Bh4 {[%emt 0:00:19]} 42. Ke6 {[%emt 0:00:33]} Bd8 {[%emt 0:00:42]} 43. Rd5 {[%emt 0:00:29]} Bg5 {[%emt 0:00:44]} 44. Rxd6 {[%emt 0:01:31]} Re8+ {[%emt 0:00:27]} 45. Kd5 {[%emt 0:00:03]} Bxe3 {[%emt 0:00:19]} 46. Rf6 {[%emt 0:01:03]} Bc5 {[%emt 0:00:46]} 47. Nc6 {[%emt 0:00:29]} Kd7 {[%emt 0:00:30]} 48. Rf7+ {[%emt 0:00:13]} Be7 {[%emt 0:00:24]} 49. Nxe7 {[%emt 0:00:15]} Ra8 {[%emt 0:00:34]} 50. Nxg6+ {[%emt 0:00:22]} 1-0

[Event "26th Abu Dhabi Master 2019"]
[Site "Abu Dhabi"]
[Date "2019.08.03"]
[Round "3.72"]
[White "Priyanka Nutakki"]
[Black "Chitlange Sakshi"]
[Result "0-1"]
[ECO "A13"]
[WhiteElo "2293"]
[BlackElo "2168"]
[Annotator "NA"]
[PlyCount "80"]
[EventDate "2019.08.02"]
[EventType "swiss"]
[EventCountry "UAE"]
[SourceTitle "playchess.com"]
[Source "ChessBase"]
[SourceQuality "1"]
[TimeControl "5400+30"]

1. c4 {[%emt 0:00:00]} e6 {[%emt 0:00:00]} 2. Nf3 {[%emt 0:00:00]} d5 {[%emt 0:00:00]} 3. e3 {[%emt 0:00:00]} Nf6 {[%emt 0:00:04]} 4. b3 {[%emt 0:00:21]} b6 {[%emt 0:00:54]} 5. Bb2 {[%emt 0:00:09]} Bb7 {[%emt 0:00:23]} 6. Qc2 {[%emt 0:02:17]} Bd6 {[%emt 0:01:52]} 7. d4 {[%emt 0:00:11]} Nbd7 {[%emt 0:00:54]} 8. Bd3 {[%emt 0:01:57]} O-O {[%emt 0:01:15]} 9. Nbd2 {[%emt 0:00:29]} c5 {[%emt 0:02:23]} 10. O-O {[%emt 0:00:08]} cxd4 {[%emt 0:03:55]} 11. exd4 {[%emt 0:01:10]} Rc8 {[%emt 0:00:51]} 12. Rad1 {[%emt 0:04:03]} Qc7 {[%emt 0:03:24]} 13. Rfe1 {[%emt 0:02:14]} Qb8 {[%emt 0:07:38]} 14. Ne5 {[%emt 0:06:59]} Rfd8 {[%emt 0:03:55]} 15. Ndf3 {[%emt 0:06:25]} h6 {[%emt 0:01:46]} 16. Qe2 {[%emt 0:08:40]} Ne4 {[%emt 0:06:02]} 17. Nxd7 {[%emt 0:16:56]} Rxd7 {[%emt 0:00:02]} 18. Ne5 {[%emt 0:00:09]} Re7 {[%emt 0:06:02]} 19. f3 {[%emt 0:06:32]} Nf6 {[%emt 0:01:01]} 20. Rc1 {[%emt 0:00:38]} dxc4 {[%emt 0:03:35]} 21. bxc4 {[%emt 0:02:14]} Nd7 {[%emt 0:05:29]} 22. f4 {[%emt 0:00:39]} Nf8 {[%emt 0:05:58]} 23. g3 {[%emt 0:08:22]} Ba8 {[%emt 0:04:06]} 24. Qh5 {[%emt 0:08:29]} Nd7 {[%emt 0:10:55]} 25. Nxd7 {[%emt 0:02:58]} Rxd7 {[%emt 0:00:13]} 26. d5 {[%emt 0:00:27]} Qc7 {[%emt 0:07:42]} 27. Qg4 {[%emt 0:02:25]} Qc5+ {[%emt 0:05:17]} 28. Kf1 {[%emt 0:00:34]} Bf8 {[%emt 0:00:05]} 29. f5 {[%emt 0:02:31]} h5 {[%emt 0:08:38]} 30. Qg5 {[%emt 0:09:09]} f6 {[%emt 0:00:56]} 31. Bxf6 {[%emt 0:03:13]} exd5 {[%emt 0:00:04]} 32. Be5 {[%emt 0:01:26]} d4 {[%emt 0:05:55]} 33. Qxh5 {[%emt 0:00:59]} Qa3 {[%emt 0:00:54]} 34. Qe2 {[%emt 0:01:04]} Re8 {[%emt 0:00:48]} 35. Qc2 {[%emt 0:02:09]} Bb4 {[%emt 0:01:30]} 36. f6 {[%emt 0:01:09]} gxf6 {[%emt 0:00:14]} 37. Bxf6 {[%emt 0:00:41]} Bxe1 {[%emt 0:01:10]} 38. Qd1 {[%emt 0:00:39]} Rf7 {[%emt 0:01:02]} 39. Qg4+ {[%emt 0:00:12]} Kf8 {[%emt 0:00:00]} 40. Qg6 {[%emt 0:00:46]} Qxc1 {[%emt 0:00:11]} 0-1

[Event "26th Abu Dhabi Master 2019"]
[Site "Abu Dhabi"]
[Date "2019.08.03"]
[Round "3.73"]
[White "Paramzina, Anastasya"]
[Black "Thrish Karthik"]
[Result "1-0"]
[ECO "C41"]
[WhiteElo "2300"]
[BlackElo "2075"]
[Annotator "ChessBase"]
[PlyCount "127"]
[EventDate "2019.08.02"]
[EventType "swiss"]
[EventCountry "UAE"]
[SourceTitle "playchess.com"]
[Source "ChessBase"]
[SourceQuality "1"]
[TimeControl "5400+30"]

1. e4 e5 2. Nf3 d6 3. Bc4 Be7 4. O-O Nf6 5. d3 O-O 6. Re1 c6 7. Bb3 Bg4 8. h3 Bh5 9. Nbd2 Nbd7 10. c3 d5 11. Bc2 Qc7 12. Nf1 Rad8 13. Ng3 Bg6 14. Nh4 Rfe8 15. Nxg6 hxg6 16. Qe2 Nf8 17. Nf1 Ne6 18. g3 Bd6 19. Nh2 dxe4 20. dxe4 Bc5 21. Ng4 Nh5 22. b4 Bb6 23. Ne3 Qc8 24. h4 Qc7 25. Qf3 a6 26. Nc4 Ba7 27. a3 b5 28. Ne3 Qe7 29. a4 Bb6 30. Ng4 Qc7 31. Bb3 Qb8 32. a5 Ba7 33. Be3 Bxe3 34. Qxe3 Qc7 35. Rad1 Rxd1 36. Rxd1 Nf6 37. Nxf6+ gxf6 38. h5 Kg7 39. hxg6 fxg6 40. Qb6 Qc8 41. Qa7+ Kh6 42. Qd7 Qxd7 43. Rxd7 Ng5 44. Rc7 Nxe4 45. Rxc6 Kg5 46. Bd5 Nd2 47. Rxa6 Rd8 48. Bb7 e4 49. f4+ Kf5 50. Kf2 Nf3 51. g4+ Kxg4 52. Bxe4 Nd2 53. Bxg6 f5 54. Ke2 Ne4 55. Ke3 Rc8 56. Kd4 Rc4+ 57. Ke5 Nxc3 58. Bxf5+ Kf3 59. Rh6 Na2 60. a6 Rc7 61. Rh7 Rxh7 62. Bxh7 Nxb4 63. Be4+ Kg4 64. a7 1-0

[Event "26th Abu Dhabi Master 2019"]
[Site "Abu Dhabi"]
[Date "2019.08.03"]
[Round "3.74"]
[White "Wang, Shanshan"]
[Black "Bartel, Marta"]
[Result "1/2-1/2"]
[ECO "B06"]
[WhiteElo "2122"]
[BlackElo "2260"]
[Annotator "NA"]
[PlyCount "72"]
[EventDate "2019.08.02"]
[EventType "swiss"]
[EventCountry "UAE"]
[SourceTitle "playchess.com"]
[Source "ChessBase"]
[SourceQuality "1"]
[TimeControl "5400+30"]

1. e4 d6 2. d4 g6 3. Nc3 Bg7 4. Nf3 c6 5. a4 Nf6 6. Bc4 O-O 7. Bb3 a5 8. O-O Na6 9. h3 Nc7 10. Re1 {[%emt 0:21:26]} d5 {[%emt 0:21:13]} 11. e5 {[%emt 0:02:04]} Nfe8 {[%emt 0:03:25]} 12. Nh2 {[%emt 0:00:57]} b5 {[%emt 0:06:23]} 13. f4 {[%emt 0:01:30]} b4 {[%emt 0:05:05]} 14. Ne2 {[%emt 0:00:25]} f5 {[%emt 0:13:01]} 15. Be3 {[%emt 0:08:34]} Ne6 {[%emt 0:02:16]} 16. Qd2 {[%emt 0:07:11]} Qb6 {[%emt 0:02:44]} 17. Nc1 {[%emt 0:04:09]} N8c7 {[%emt 0:03:24]} 18. Nf3 {[%emt 0:01:28]} Ba6 {[%emt 0:00:43]} 19. Nd3 {[%emt 0:00:48]} Qb8 {[%emt 0:05:34]} 20. Kf2 {[%emt 0:03:02]} Bh6 {[%emt 0:04:05]} 21. g3 {[%emt 0:01:18]} Qa7 {[%emt 0:04:19]} 22. Kg2 {[%emt 0:03:46]} Rad8 {[%emt 0:00:27]} 23. Rad1 {[%emt 0:03:03]} Kh8 {[%emt 0:00:29]} 24. Qf2 {[%emt 0:00:34]} Qa8 {[%emt 0:01:26]} 25. Kh2 {[%emt 0:01:40]} Bc4 {[%emt 0:02:52]} 26. h4 {[%emt 0:03:04]} Bg7 {[%emt 0:03:06]} 27. Ng5 {[%emt 0:02:50]} Bxd3 {[%emt 0:02:27]} 28. cxd3 {[%emt 0:06:43]} Nxg5 {[%emt 0:02:04]} 29. hxg5 {[%emt 0:00:33]} Ne6 {[%emt 0:00:20]} 30. Rh1 {[%emt 0:00:46]} Kg8 {[%emt 0:06:06]} 31. Kg1 {[%emt 0:00:57]} Qa7 {[%emt 0:00:45]} 32. Rc1 {[%emt 0:05:47]} Qb6 {[%emt 0:00:25]} 33. Kf1 {[%emt 0:00:43]} Rfe8 {[%emt 0:02:14]} 34. Ke2 {[%emt 0:00:49]} Nf8 {[%emt 0:01:57]} 35. Kf3 {[%emt 0:05:44]} Rc8 {[%emt 0:03:03]} 36. Rc5 {[%emt 0:03:32]} e6 {[%emt 0:01:50]} 1/2-1/2

[Event "26th Abu Dhabi Master 2019"]
[Site "Abu Dhabi"]
[Date "2019.08.03"]
[Round "3.75"]
[White "Davainis, Marius"]
[Black "Aakanksha Hagawane"]
[Result "1/2-1/2"]
[ECO "A37"]
[WhiteElo "2105"]
[BlackElo "2246"]
[Annotator "NA"]
[PlyCount "110"]
[EventDate "2019.08.02"]
[EventType "swiss"]
[EventCountry "UAE"]
[SourceTitle "playchess.com"]
[Source "ChessBase"]
[SourceQuality "1"]
[TimeControl "5400+30"]

1. Nf3 c5 2. c4 Nc6 3. Nc3 g6 4. g3 Bg7 5. Bg2 d6 6. O-O Nf6 7. d3 O-O 8. Bg5 h6 9. Bd2 Bf5 10. e4 Bg4 11. h3 Bxf3 12. Bxf3 Nd4 13. Bg2 Nd7 14. Be3 a6 15. Qd2 Kh7 16. Kh2 Rb8 17. f4 b5 18. cxb5 axb5 19. Ne2 Nxe2 20. Qxe2 Ra8 21. Rfd1 Ra4 22. b3 Ra3 23. d4 Qb8 24. Rac1 Rc8 25. Rc2 c4 26. Bc1 Ra7 27. bxc4 bxc4 28. Rxc4 Qb5 29. Rc2 Qxe2 30. Rxe2 Bxd4 31. Rxd4 Rxc1 32. Rdd2 f6 33. Rc2 Ra1 34. h4 Kg7 35. Bh3 Nc5 36. e5 fxe5 37. fxe5 Nd3 38. exd6 exd6 39. Be6 Ne5 40. Kg2 Rd1 41. Rcd2 Rxd2 42. Rxd2 Ra6 43. Bc8 Rc6 44. Bb7 Rb6 45. Bd5 Ra6 46. Rd4 Kf6 47. Rf4+ Ke7 48. Bb3 Ra5 49. Ra4 Rxa4 50. Bxa4 d5 51. Kf2 d4 52. Ke2 Kd6 53. Bb3 Kc5 54. a3 Kb5 55. Kd2 Kc5 1/2-1/2